Cogmind - Beta 16.1 @@@ ROGUE MODE // 2026.02.17 @ 23:30:40 Player: UniqueName Result: Destroyed by as-69318 with Assembled Maul Performance ------------- Evolutions (0) 0 Regions Visited (2) 400 Robots Destroyed (12) 60 Value Destroyed (177) 177 Prototype IDs (0) 0 Alien Tech Used (0) 0 Bonus (0) 0 TOTAL SCORE: 637 Bonus ------- None Cogmind --------- Core Integrity 0/250 Matter 300/300 Energy 100/100 System Corruption 5% Temperature Cool (0) Movement Walking (120) Location -10/Mines Parts ------- > --- POWER (1) -------- (None) > --- PROPULSION (2) --- Aluminum Leg > --- UTILITY (2) ------ Small Storage Unit > --- WEAPON (2) ------- Light Assault Rifle > --- INVENTORY (8) ---- Light Ion Engine Light Ion Engine Aluminum Leg Aluminum Leg Aluminum Leg Light Armor Plating Small Laser Assault Rifle Peak State ------------ > --- POWER ------------ Light Ion Engine > --- PROPULSION ------- Light Treads Light Treads > --- UTILITY ---------- Small Storage Unit > --- WEAPON ----------- Small Laser Light Assault Rifle > --- INVENTORY -------- Aluminum Leg Aluminum Leg [Rating: 6] Favorites ----------- Power Light Ion Engine Engine Light Ion Engine Propulsion Light Treads Treads Light Treads Leg Aluminum Leg Flight Unit Flight Unit Utility Small Storage Unit Storage Small Storage Unit Weapon Light Assault Rifle Energy Gun Small Laser Ballistic Gun Light Assault Rifle Build | -11 -10 -10 ------- Run | Yrd Mat Min Slots Evolved . | . . . Power . | . . . Propulsion . | . . . Utility . | . . . Weapon . | . . . Parts Attached 16 | 6 2 8 Power 2 | 1 1 . Engine 2 | 1 1 . Core . | . . . Reactor . | . . . Propulsion 7 | 2 . 5 Treads 2 | 2 . . Leg 3 | . . 3 Wheel . | . . . Hover . | . . . Flight 2 | . . 2 Utility 1 | 1 . . Device . | . . . Storage 1 | 1 . . Processor . | . . . Hackware . | . . . Protection . | . . . Artifact . | . . . Weapon 6 | 2 1 3 Energy Gun 1 | 1 . . Energy Cannon . | . . . Ballistic Gun 5 | 1 1 3 Ballistic Cannon . | . . . Launcher . | . . . Special Weapon . | . . . Impact Weapon . | . . . Slashing Weapon . | . . . Piercing Weapon . | . . . Special Melee Weapon . | . . . Unidentified Prototypes . | . . . Parts Lost 6 | . . 6 Power 1 | . . 1 Propulsion 3 | . . 3 Utility . | . . . Weapon 2 | . . 2 Highest Loss Streak 3 | . . 3 To Critical Strikes . | . . . Average Backups 6 | 2 6 7 Power 1 | . 1 2 Propulsion 1 | 1 2 2 Utility . | . . 1 Weapon 2 | . 2 2 Tool/Special . | . . . Unused Backups 7 | . . 7 Power 2 | . . 2 Propulsion 2 | . . 2 Utility 1 | . . 1 Weapon 2 | . . 2 Tool/Special . | . . . Average Slot Usage (%) 82 | . 85 74 Engine 13 | . 14 13 Treads 21 | . 28 5 Leg 2 | . . 7 Flight 3 | . . 11 Storage 14 | . 14 14 Energy Gun 11 | . 14 3 Ballistic Gun 15 | . 14 18 Peak Build Rating 6 | 6 6 6 Average Rating 5 | 4 6 5 On Entrance 4 | . 6 6 Avg Prop Armor Cover (%) . | . . . Naked Turns . | . . . Heaviest Build 10 | 10 10 10 Greatest Support 40 | 40 40 40 Greatest Overweight (x) 3 | . . 3 Average Overweight (x) . | . . . Largest Inventory Capacity 8 | 8 8 8 Average Capacity 7 | 6 8 8 Most Carried 8 | 4 8 8 Average Carried 6 | 2 6 7 Final Capacity 8 | 8 8 8 Final Carried 8 | 4 8 8 Class Distribution -------------------- 80% | Mutant 19% | Scavenger-Mutant Dominant Class ---------------- Mutant | -10/Materials Scavenger-Mutant | -10/Mines Resources | -11 -10 -10 ----------- Run | Yrd Mat Min Matter Collected 391 | 198 104 89 Remotely . | . . . Salvage Created 296 | . 145 151 Parts 26 | . 12 14 Haulers Intercepted . | . . . Recyclers Shooed . | . . . Parts Field Recycled . | . . . Retrieved Matter . | . . . Parts Self-Destructed . | . . . Prevented . | . . . Parts Restored . | . . . Kills | -11 -10 -10 ------- Run | Yrd Mat Min Combat Hostiles Destroyed 12 | . 6 6 Guns 12 | . 6 6 Classes Destroyed 4 | . 2 2 Recycler 1 | . 1 . Swarmer 9 | . 6 3 Grunt 2 | . . 2 Assembled 1 | . . 1 Best Kill Streak 3 | . 3 3 Combat Bots Only 3 | . 3 3 Max Kills in Single Turn 2 | . 2 1 Gunslinging 1 | . 1 . Exploded . | . . . Melee . | . . . Uniques/NPCs Destroyed . | . . . Combat | -11 -10 -10 -------- Run | Yrd Mat Min Hostile Shots Fired 124 | . 43 81 Missed 35 | . 11 24 Hits 89 | . 32 57 Melee 4 | . . 4 Projectile 85 | . 32 53 Critical Strikes 1 | . . 1 Damage Taken 1034 | . 290 744 Core 262 | . 59 203 Absorbed by Shields . | . . . Core Remaining (%) 100 | 100 . . Volleys Fired 48 | . 22 26 Largest 2 | . 2 2 Hottest 60 | . 60 60 Shots Fired 84 | . 43 41 Gun 84 | . 43 41 Cannon . | . . . Launcher . | . . . Special . | . . . Kinetic 59 | . 22 37 Thermal 25 | . 21 4 Explosive . | . . . Electromagnetic . | . . . Robot Hit Streak 10 | . 3 10 Robot Miss Streak 8 | . 8 2 Penetration Max . | . . . Secondary Targets 4 | . 2 2 Max Gunslinging Chain 1 | . 1 1 Shots Hit Robots 42 | . 13 29 Core Hits 25 | . 10 15 Critical Kills . | . . . Critical Parts Destroyed . | . . . Critical Strikes . | . . . Melee Attacks . | . . . Impact . | . . . Slashing . | . . . Piercing . | . . . Sneak Attacks . | . . . Combat Hostiles . | . . . Follow-up Attacks . | . . . Damage Inflicted 392 | . 158 234 Guns 392 | . 158 234 Cannons . | . . . Explosions . | . . . Melee . | . . . Ramming . | . . . Kinetic 259 | . 59 200 Thermal 133 | . 99 34 Explosive . | . . . Electromagnetic . | . . . Impact . | . . . Slashing . | . . . Piercing . | . . . Highest Corruption 5 | . . 5 Average Corruption 5 | . . 5 Corruption Purged . | . . . Corruption Blocked . | . . . Overload Shots . | . . . Overflow Damage . | . . . Projectiles . | . . . Explosions . | . . . Melee . | . . . Knockbacks . | . . . Impact . | . . . Kinetic . | . . . Secondary . | . . . Self-Inflicted Damage . | . . . Shots . | . . . Rammed . | . . . Targets Rammed . | . . . Kicked . | . . . Crushed . | . . . Highest Temperature 40 | . 40 40 Average Temperature 18 | . 20 13 Received Heat Transfer 214 | . 6 208 Siege Activations . | . . . Martial Activations . | . . . Shielding Activations . | . . . Robots Disrupted . | . . . Combat Hostiles . | . . . Robots Corrupted . | . . . Combat Hostiles . | . . . Parts Fried . | . . . Impact Corruptions . | . . . Robots Melted . | . . . Combat Hostiles . | . . . Parts Melted . | . . . Heat Transferred 300 | . 225 75 Parts Sabotaged . | . . . Parts Stolen . | . . . Parts Stripped . | . . . Power Chain Reactions . | . . . Alert | -11 -10 -10 ------- Run | Yrd Mat Min Maximum Alert Level . | . . . Low Security (%) 100 | 100 100 100 Level 1 . | . . . Level 2 . | . . . Level 3 . | . . . Level 4 . | . . . Level 5 . | . . . High Security . | . . . Max Security . | . . . Peak Influence 111 | . 111 106 Initial 36 | . . 36 Average 32 | . 26 66 Influence Increases 340 | . 220 120 Destroy 0b10 Robot/C 220 | . 120 100 Destroy 0b10 Robot/NC 5 | . 5 . Destroy Leader 50 | . 30 20 Successful Hack 5 | . 5 . Lose Combat Pursuer 60 | . 60 . Influence Decreases 334 | . 125 209 Entered New Map 59 | . . 59 Time Decay 215 | . 125 90 Lost Part 60 | . . 60 Squads Dispatched 1 | . 1 . Investigation . | . . . Extermination . | . . . Reinforcement 1 | . 1 . Assault . | . . . Garrison . | . . . Intercept . | . . . Searches Triggered . | . . . Construction Impeded . | . . . Haulers Reinforced . | . . . Active Scanning Responses . | . . . Cargo Convoy Interrupts . | . . . Stealth | -11 -10 -10 --------- Run | Yrd Mat Min Distress Signals 2 | . 2 . Communications Jammed . | . . . Distress Signals . | . . . Times Spotted 39 | . 16 23 Peak Tracking Total 18 | . 6 18 Tactical Retreats 2 | . 2 . Traps | -11 -10 -10 ------- Run | Yrd Mat Min Traps Triggered 1 | . 1 . Indirectly . | . . . Trap Hack Attempts . | . . . Triggered . | . . . Disarmed 4 | . 4 . Reprogrammed . | . . . Reused . | . . . Traps Extracted . | . . . Installed . | . . . Triggered . | . . . Machines | -11 -10 -10 ---------- Run | Yrd Mat Min Machines Disabled . | . . . Max in Single Turn . | . . . Machines Repaired . | . . . Machines Dismantled . | . . . Machines Sabotaged . | . . . Overloaded Fab Kills . | . . . Hacking | -11 -10 -10 --------- Run | Yrd Mat Min Machines Accessed 4 | . 4 . Terminals 4 | . 4 . Fabricators . | . . . Repair Stations . | . . . Recycling Units . | . . . Scanalyzers . | . . . Garrison Access . | . . . Total Hacks 9 | . 9 . Successful 4 | . 4 . Failed 5 | . 5 . Catastrophic . | . . . Database Lockouts . | . . . Manual . | . . . Terminals 9 | . 9 . Fabricators . | . . . Repair Stations . | . . . Recycling Units . | . . . Scanalyzers . | . . . Garrison Access . | . . . Terminal Hacks 4 | . 4 . Disarm Traps 1 | . 1 . Hauler Manifests 1 | . 1 . Zone Layout 2 | . 2 . Fabricator Hacks . | . . . Repair Station Hacks . | . . . Recycling Unit Hacks . | . . . Scanalyzer . | . . . Garrison Access Hacks . | . . . Unauthorized Hacks . | . . . Terminals . | . . . Fabricators . | . . . Repair Stations . | . . . Recycling Units . | . . . Scanalyzers . | . . . Garrison Access . | . . . Data Cores Recovered . | . . . Used . | . . . Hacking Detections 2 | . 2 . Full Trace Events . | . . . Feedback Events . | . . . Feedback Blocked . | . . . Robot Schematics Acquired . | . . . Robots Built . | . . . Authchips . | . . . Time . | . . . Total Robot Build Rating . | . . . Part Schematics Acquired . | . . . Parts Built . | . . . Authchips . | . . . Time . | . . . Total Part Build Rating . | . . . Part Studies Acquired . | . . . Parts Repaired . | . . . Time . | . . . Parts Recycled . | . . . Recycled Matter . | . . . Retrieved Matter . | . . . Retrieved Components . | . . . Parts Scanalyzed . | . . . Part Schematics Acquired . | . . . Parts Damaged . | . . . Bothacking | -11 -10 -10 ------------ Run | Yrd Mat Min Used RIF Installer . | . . . Robots Hacked . | . . . Non-combat . | . . . Combat . | . . . Robot Hacks Applied . | . . . Relay Couplers Released . | . . . Fabnet Peak Effective % . | . . . Robots Rewired . | . . . Allies Hacked . | . . . Hacks Repelled . | . . . Allies | -11 -10 -10 -------- Run | Yrd Mat Min Total Allies . | . . . Largest Group . | . . . Highest-Rated Group . | . . . Highest-Rated Ally . | . . . Total Orders . | . . . Ally Attacks . | . . . Total Damage . | . . . Kills . | . . . Allies Corrupted . | . . . Allies Melted . | . . . Intel | -11 -10 -10 ------- Run | Yrd Mat Min Active Infowar (turns) . | . . . Robot Analysis Total . | . . . Derelict Logs Recovered . | . . . Drone Launches . | . . . Drone Recoveries . | . . . Exploration | -11 -10 -10 ------------- Run | Yrd Mat Min Turns Passed 773 | 97 492 184 Spaces Moved 388 | 55 258 75 Core 4 | 3 . 1 Treads 321 | 52 258 11 Legs 25 | . . 25 Wheels . | . . . Hover . | . . . Flight 38 | . . 38 Fastest Speed 37 | 50 160 37 Average Speed 152 | 154 160 125 Slowest Speed 200 | 160 160 200 Overloaded Moves . | . . . Propulsion Burnouts . | . . . Robots Hopped . | . . . Potential Cave-ins . | . . . Cave-ins Triggered . | . . . Exploration Rate (%) 19 | 3 39 17 Regions Visited 2 Branch Regions 1 Pre-discovered Areas . | . . . Known Exits Taken . | . . . Unknown Exits Taken 2 | 1 1 . Scrap Searched . | . . . Spaces Dug . | . . . Terrain Destroyed . | . . . Melee . | . . . Projectile . | . . . AOE . | . . . Terrain Rammed . | . . . Walls Destroyed . | . . . Machines Disabled . | . . . Actions | -11 -10 -10 --------- Run | Yrd Mat Min Total 493 | 64 299 130 Wait 28 | . 12 16 Move 386 | 54 257 75 Hop . | . . . Pick Up 9 | 4 4 1 Fast Attach 11 | 6 . 5 Attach 2 | . . 2 Detach . | . . . Swap 3 | . 2 1 Drop 6 | . 2 4 Fire 48 | . 22 26 Melee . | . . . Ram . | . . . Kick . | . . . Crush . | . . . Escape Stasis . | . . . Rewire . | . . . Trap . | . . . Miscellaneous . | . . . Route ------- -11/Scrapyard -10/Materials -10/Mines History --------- Turn | Location | Event 8 | -11/Scrapyard | Discovered new exit (range 14) 98 | -11/Scrapyard | Entered Materials 305 | -10/Materials | Build established: Mutant 569 | -10/Materials | Discovered new exit (range 9) 590 | -10/Materials | Entered Mines 706 | -10/Mines | Core integrity fell below 50% 739 | -10/Mines | Lost 3 parts (2n1w) 747 | -10/Mines | Assembled infested the area 752 | -10/Mines | Assisted by a Guerilla fighting off Assembled 769 | -10/Mines | Core integrity fell below 20% 774 | -10/Mines | Destroyed by as-69318 with Assembled Maul Last Messages --------------- 00752_ A derelict emerges from the shadows: "You need to get out of here! I've been tracking a group of Assembled to figure out where they're coming from, and they're closing on this area, come on!" 00752_ K-01 Serf collects debris. 00752_ as-46851 sneak attacks. 00752_ K-01 Serf destroyed. 00755_ HV Slug penetrates Wall. 00755_ G-47 Trooper: "SECOND INTRUDER APPROACHING. ELIMINATE." 00758_ GM-WGK(h) knocked back. 00759_ K-01 Serf destroyed. 00760_ as-50192 suffers critical hit (Destroy). 00760_ as-50192 destroyed. 00761_ GM-WGK(h) destroyed. 00762_ Lgt. Ion Engine destroyed. 00762_ System corrupted by crushing effect (+5). 00763_ as-73137 destroyed. 00766_ as-46851 destroyed. 00771_ Lgt. Assault Rifle destroyed. 00771_ as-87121 destroyed. 00774_ Aluminum Leg destroyed. Map ----- +----------------------------------------------------+ | | | ??????????????????????????????????? | | ??????????????????????????????????? | | ??????????????????????????????????? | | ##########?????##########?????????? | | [ [####### #?????????? | | [=== = #?????????? | | *= [####### """ #?????????? | | % %#?????# """ #?????????? | | ##########?????# """ #?????????? | | ???????????????# #?????????? | | ???????????????# """ #?????????? | | ???????????????# """ #?????????? | | ???????????????# """ #?????????? | | ???????????????# #?????????? | | ???????????????# ! #?????????? | | ???????????????#####%%###?????????? | | ???????????????##### ###?????????? | | ??????????????## ##????????? | | ?????????????## #????????? | | ?????????????# #????????? | | ?????????????# ## #????????? | | ?????????????## #?## ##???????? | | ??????????????###???# ##??????? | | ????????????????????# ##?????? | | ????????????????????## a@ #?????? | | ????????????????????## a #?????? | | ???????????????###### % ##?????? | | ???????????????# !% a #??????? | | ??????????????# %* % #??????? | | ?????????? a % #??????? | | ????????? a a ##??????? | | ?????????## a a ####???????? | | ??????????#" a #??????????? | | ??????????## % ### ???????????? | | ??????????? % #??#g ???????????? | | ??????????? %#???# ???????????? | | ???????????"#% !????# ???????????? | | ????????????## ?????# #???????????? | | ?????????????#??????# ????????????? | | ???????????????????? ????????????? | | ????????????????????# ????????????? | | ????????????????????#?????????????? | | ??????????????????????????????????? | | ??????????????????????????????????? | | ??????????????????????????????????? | | ??????????????????????????????????? | | ??????????????????????????????????? | | ??????????????????????????????????? | | ??????????????????????????????????? | +----------------------------------------------------+ Best States ------------- Heat Dissipation 25 Energy Generation 10 Energy Capacity 125 Matter Stores 300 Matter Capacity 300 Sight Range 16 Terrain Scan Density 10 Evasion (%) 55 Recoil Reduction 2 Item Schematics ----------------- None Robot Schematics ------------------ None Fabricated ------------ Nothing Repaired ---------- Nothing Studied --------- None Alien Tech Used ----------------- None Achievements -------------- None Challenges ------------ None Game ------ Seed LauncherFissionCutter Manual? 0 Play Time 00:09:28 Cumulative 15.5 hours Start 2026.02.17 @ 23:23:32 End 2026.02.17 @ 23:30:40 Sessions 1 Manual Loads 0 Difficulty Rogue Special Mode None Game No. 19 Rogue 19 Adventurer 0 Explorer 0 Win Type - Total 0 Types 0/0/0/0/0/0/0/0/0/0 Lore% 11 Gallery% 21 Achievement% 17 Wizard Run 0 Options --------- Layout 0 ASCII 0 Keyboard 0 Movement Arrows Keybinds 0 Fullscreen 1 Font 18/SmallcapsGlow Map View 76x50 Zoom Use 0% Tactical HUD 1 Map Filters NONE Filters NONE Steam 1 RUN: 217dedf1-af38-4cee-ac78-12dcc2ed1b3e